bitfinex-derivatives/quotes_SOLF0:USTF0_20250714
["timestamp","ask_amount","ask_price","bid_price","bid_amount"]
[1752463201007,176.34,165.74,165.72,3.43]
[1752463201303,6.6118,165.73,165.72,3.43]
[1752463201504,6.0318,165.73,165.72,3.43]
[1752463203110,6.0318,165.73,165.72,9.42397671]
[1752463203509,6.0318,165.73,165.72,3.43]
[1752463203809,6.0318,165.73,165.72,9.42554954]
[1752463205207,182.9515,165.74,165.72,9.42554954]
[1752463205410,176.92,165.74,165.73,9.42554954]
[1752463205707,176.34,165.74,165.73,9.42554954]
[1752463206609,176.34,165.74,165.73,9.42456233]
[1752463206908,521.22,165.78,165.76,3.43]
[1752463207111,521.22,165.78,165.77,9.42456233]
[1752463207310,176.34,165.78,165.77,9.42456233]
[1752463208111,182.3699,165.78,165.77,9.42456233]
[1752463209209,182.3699,165.78,165.77,9.41774915]
[1752463209814,182.3699,165.78,165.77,3.43]
[1752463211612,6.0299,165.78,165.77,3.43]
[1752463211821,182.3496,165.79,165.77,3.43]
[1752463212514,6.0299,165.78,165.77,3.43]
[1752463212919,5.06545644,165.87,165.77,3.43]
[1752463213120,6.0282,165.83,165.82,6.30865251]
[1752463213321,176.9,165.87,165.83,3.43]
[1752463213722,6.0278,165.84,165.83,3.43]
[1752463215022,526.28545644,165.93,165.84,3.43]
[1752463215226,0.58,165.92,165.87,3.43]
[1752463215524,176.38,165.91,165.87,3.43]
[1752463216020,176.38,165.91,165.89,3.43]
[1752463216217,521.22,165.93,165.89,3.43]
[1752463216218,176.94,165.92,165.89,3.43]
[1752463216422,6.0259,165.89,165.88,2.87865251]
[1752463216624,176.94,165.92,165.88,2.87865251]
[1752463216925,521.22,165.93,165.88,2.87865251]
[1752463217126,176.34,165.92,165.89,3.43]
[1752463217428,6.0259,165.89,165.88,2.87865251]
[1752463217819,6.0256,165.9,165.88,6.30865251]
[1752463218019,6.0256,165.9,165.89,3.43]
[1752463222428,0.58,165.9,165.79,3.43]
[1752463222623,0.58,165.9,165.84,3.43]
[1752463222818,6.0272,165.86,165.84,3.43]
[1752463223022,176.24,165.87,165.85,2.87865251]
[1752463223223,0.58,165.91,165.86,3.43]
[1752463223524,521.22,165.93,165.77,4.96124228]
[1752463223525,6.0262,165.89,165.88,3.43]
[1752463224125,6.0249,165.92,165.88,3.43]
[1752463224331,0.58,165.95,165.9,2.87865251]
[1752463224332,176.24,165.94,165.9,2.87865251]
[1752463224523,176.24,165.94,165.91,3.43]
[1752463224724,6.025,165.92,165.91,3.43]
[1752463227024,6.605,165.92,165.91,3.43]
[1752463227223,6.025,165.92,165.91,3.43]
[1752463227429,6.0246,165.93,165.91,3.43]
[1752463227633,0.58,165.98,165.93,3.43]
[1752463227834,176.46,165.97,165.93,3.43]
[1752463228135,176.46,165.97,165.94,2.87865251]
[1752463228426,176.46,165.97,165.95,3.43]
[1752463229920,177.04,166.0,165.95,3.43]
[1752463231021,2.87865251,166.0,165.96,3.41]
[1752463231324,0.59,165.98,165.96,3.41]
[1752463231727,6.023,165.97,165.96,3.41]
[1752463231923,176.44,165.97,165.96,3.41]
[1752463232319,182.463,165.97,165.96,3.41]
[1752463232719,6.023,165.97,165.96,3.41]
[1752463233225,177.03,165.99,165.93,3.41]
[1752463233226,0.59,165.99,165.93,3.41]
[1752463233625,176.48,165.98,165.95,3.41]
[1752463234424,6.023,165.97,165.96,3.41]
[1752463235130,182.5028,165.98,165.96,3.41]
[1752463235731,6.0225,165.99,165.96,3.41]
[1752463235931,176.4,165.99,165.96,3.41]
[1752463236230,520.92,166.01,165.97,2.87865251]
[1752463236532,697.44,166.01,165.98,3.41]
[1752463237336,0.59,166.0,165.98,3.41]
[1752463238231,6.0223,165.99,165.98,3.41]
[1752463238532,697.44,166.01,165.98,3.41]
[1752463238727,6.0221,166.0,165.98,3.41]
[1752463238922,697.44,166.01,165.98,3.41]
[1752463240331,520.92,166.01,165.98,3.41]
[1752463240532,176.54,166.0,165.98,3.41]
[1752463241530,6.0222,166.0,165.98,3.41]
[1752463241730,182.4622,166.0,165.98,3.41]
[1752463242027,6.0222,166.0,165.98,3.41]
[1752463242226,176.42,166.01,165.98,3.41]
[1752463242726,182.4418,166.01,165.98,3.41]
[1752463243328,6.0218,166.01,165.98,3.41]
[1752463244036,6.022,166.0,165.98,3.41]
[1752463244339,0.59,166.04,165.98,3.41]
[1752463244530,6.0215,166.02,165.99,6.28865251]
[1752463244732,176.38,166.03,166.0,3.41]
[1752463244929,1.04852438,166.06,166.0,3.41]
[1752463245132,6.0216,166.01,166.0,3.41]
[1752463245833,6.0213,166.02,166.0,3.41]
[1752463246034,176.34,166.04,166.0,3.41]
[1752463246932,6.0208,166.04,166.01,3.41]
[1752463247240,176.9,166.06,166.01,3.41]
[1752463247635,6.0208,166.04,166.01,3.41]
[1752463248645,521.1,166.11,166.04,3.41]
[1752463248836,176.42,166.1,166.04,3.41]
[1752463249030,6.0196,166.07,166.04,3.41]
[1752463249230,520.52,166.11,166.04,3.41]
[1752463249438,0.58,166.14,166.09,3.41]
[1752463249631,532.5089,166.21,165.94,12.0477]
[1752463249632,0.58,166.09,165.96,3.41]
[1752463249836,0.58,166.06,166.0,3.41]
[1752463250044,177.96,166.06,166.0,3.41]
[1752463250242,6.0208,166.04,166.0,3.41]
[1752463250541,177.96,166.06,166.0,3.41]
[1752463250741,6.0212,166.03,166.0,6.28865251]
[1752463250936,0.58,166.05,166.01,3.41]
[1752463251440,6.0212,166.02,166.01,3.41]
[1752463252235,180.25865251,166.06,166.01,3.41]
[1752463252438,177.38,166.06,166.01,3.41]
[1752463252939,6.0206,166.04,166.01,3.41]
[1752463253344,177.96,166.06,166.01,3.41]
[1752463253839,177.32,166.11,166.05,3.41]
[1752463254039,0.58,166.08,166.06,3.41]
[1752463254340,0.58,166.09,166.04,3.41]
[1752463254541,180.19865251,166.11,166.04,3.41]
[1752463254742,6.0196,166.07,166.04,3.41]
[1752463256035,180.19865251,166.11,166.03,2.87865251]
[1752463256232,0.58,166.1,166.04,3.41]
[1752463256540,6.0197,166.07,166.04,3.41]
[1752463257941,6.0198,166.06,166.04,3.41]
[1752463258342,0.58,166.09,166.04,3.41]
[1752463258839,177.94,166.11,166.05,3.41]
[1752463259238,177.92,166.11,166.05,3.41]
[1752463259943,6.0192,166.08,166.05,3.41]
[1752463260535,177.26,166.11,166.05,3.41]
[1752463260737,177.83,166.11,166.06,2.87865251]
[1752463260938,0.57,166.11,166.07,3.31]
[1752463261141,520.3,166.16,166.07,3.31]
[1752463261440,520.3,166.16,166.0,2.87865251]
[1752463261441,524.22652966,166.16,166.09,3.31]
[1752463261745,6.0178,166.12,166.09,3.31]
[1752463261944,0.57,166.13,166.09,3.31]
[1752463262142,0.57,166.15,166.09,3.31]
[1752463262441,12.0262,166.25,166.14,3.31]
[1752463262442,181.26619845,166.22,166.14,3.31]
[1752463262638,0.57,166.21,166.14,3.31]
[1752463263445,0.57,166.2,166.14,3.31]
[1752463263841,177.91,166.22,166.17,3.31]
[1752463264147,0.57,166.21,166.14,2.87865251]
[1752463264344,0.57,166.21,166.15,3.31]
[1752463264747,177.91,166.22,166.15,3.31]
[1752463264950,177.34,166.22,166.15,6.18865251]
[1752463265148,177.91,166.22,166.16,3.31]
[1752463266549,177.91,166.22,166.17,2.87865251]
[1752463266847,177.34,166.22,166.18,3.31]
[1752463267040,523.72865251,166.27,166.19,2.87865251]
[1752463267245,0.57,166.34,166.08,3.31]
[1752463267446,178.92,166.33,166.17,6.0157]
[1752463267649,2.87865251,166.29,166.25,3.31]
[1752463267951,0.57,166.26,166.2,3.31]
[1752463268152,0.57,166.22,166.18,3.31]
[1752463268349,0.57,166.21,166.19,3.31]
[1752463268543,6.0147,166.2,166.19,3.31]
[1752463268940,0.57,166.2,166.18,3.31]
[1752463269146,6.0151,166.19,166.18,3.31]
[1752463269347,2.87865251,166.21,166.19,3.31]
[1752463269542,0.57,166.21,166.19,3.31]
[1752463269746,6.0147,166.2,166.19,3.31]
[1752463269942,0.57,166.2,166.17,3.31]
[1752463270146,0.57,166.2,166.18,3.31]
[1752463270344,0.57,166.2,166.13,2.87865251]
[1752463270345,0.57,166.19,166.16,3.31]
[1752463270548,0.57,166.18,166.12,3.31]
[1752463270753,6.0169,166.14,166.13,3.31]
[1752463270959,0.57,166.13,166.1,3.31]
[1752463271154,0.57,166.12,166.1,3.31]
[1752463271749,6.018,166.11,166.1,3.31]
[1752463271951,0.57,166.11,166.09,3.31]
[1752463272249,3.44865251,166.11,166.04,3.31]
[1752463272555,3.44865251,166.1,166.04,3.31]
[1752463273554,0.57,166.08,166.03,3.31]
[1752463274356,3.44865251,166.08,166.03,3.31]
[1752463274552,2.87865251,166.08,166.03,3.31]
[1752463274851,6.5908,166.04,166.02,3.31]
[1752463275047,0.57,166.04,166.02,3.31]
[1752463275449,0.57,166.03,166.01,3.31]
[1752463275853,0.57,166.02,165.96,3.31]
[1752463276049,6.0216,166.01,165.96,3.31]
[1752463276455,0.57,166.02,165.96,3.31]
[1752463276758,6.5913,166.02,165.96,3.31]
[1752463276956,0.57,166.02,165.96,3.31]
[1752463277454,0.57,166.02,165.96,9.3334]
[1752463277654,0.57,166.02,165.96,3.31]
[1752463277850,5.35983577,166.02,165.96,3.31]
[1752463278058,0.57,165.99,165.96,3.31]
[1752463278359,0.57,165.99,165.88,3.31]
[1752463278555,0.57,165.95,165.89,3.31]
[1752463278954,0.57,165.95,165.86,9.75107805]
[1752463278955,0.57,166.0,165.91,3.31]
[1752463279160,4.78983577,165.99,165.9,3.31]
[1752463279359,0.57,165.97,165.9,3.31]
[1752463279556,4.78983577,165.96,165.86,3.31]
[1752463279759,0.57,165.95,165.86,3.31]
[1752463279958,0.57,165.95,165.87,3.31]
[1752463280158,0.57,165.94,165.87,3.31]
[1752463280660,0.57,165.97,165.92,3.31]
[1752463281061,182.96,166.05,165.92,14.12433577]
[1752463281062,0.57,165.99,165.92,14.12433577]
[1752463281258,0.57,165.99,165.93,3.31]
[1752463281459,0.57,166.01,165.93,3.31]
[1752463281657,0.57,166.01,165.96,3.31]
[1752463281864,0.57,166.01,165.97,3.31]
[1752463282059,0.57,166.0,165.97,3.31]
[1752463282356,0.57,165.99,165.97,3.31]
[1752463282561,0.57,166.01,165.94,4.78983577]
[1752463282752,0.57,166.01,165.83,520.18]
[1752463282753,0.57,166.03,165.97,3.31]
[1752463282959,189.5502,166.05,165.97,3.31]
[1752463283154,183.53,166.05,165.97,3.31]
[1752463283463,0.57,166.05,165.99,3.31]
[1752463283857,530.03529221,166.08,165.9,4.78983577]
[1752463283858,0.57,166.07,165.9,4.78983577]
[1752463284064,0.57,166.05,165.97,3.31]
[1752463284663,6.5905,166.05,165.98,6.0224]
[1752463284864,0.57,166.05,165.99,3.31]
[1752463285068,0.57,166.07,165.99,3.31]
[1752463285268,0.57,166.07,166.0,6.0219]
[1752463285269,6.5897,166.07,166.0,6.0219]
[1752463285565,6.5897,166.07,166.01,3.31]
[1752463286264,11.37953577,166.07,166.01,3.31]
[1752463286457,520.18,166.08,166.01,3.31]
[1752463286661,0.57,166.09,166.01,9.3316]
[1752463286859,0.57,166.09,166.02,3.31]
[1752463287166,0.57,166.09,166.02,6.0211]
[1752463287359,0.57,166.11,166.03,3.31]
[1752463288264,6.5882,166.11,166.04,3.31]
[1752463288461,0.57,166.11,166.04,3.31]
[1752463289268,6.5887,166.09,166.04,3.31]
[1752463289772,0.57,166.08,165.98,4.78983577]
[1752463289966,4.78983577,166.07,165.99,3.31]
[1752463290166,5.35983577,166.07,165.99,3.31]
[1752463290371,0.56,166.04,165.99,3.31]
[1752463290667,0.56,166.04,166.01,3.49]
[1752463291062,0.56,166.03,166.01,3.49]
[1752463291458,22.88983577,166.1,166.01,3.49]
[1752463291665,0.56,166.07,166.03,3.49]
[1752463291870,0.56,166.07,165.99,4.78983577]
[1752463292168,0.56,166.07,166.0,3.49]
[1752463292763,0.56,166.07,166.01,3.49]
[1752463293161,6.0204,166.05,165.98,6.0226]
[1752463293365,0.56,166.05,166.02,3.49]
[1752463293769,6.0206,166.04,166.02,3.49]
[1752463294467,6.5806,166.04,165.98,3.49]
[1752463294673,6.5809,166.03,165.98,3.49]
[1752463295370,0.56,166.03,165.98,3.49]
[1752463296165,6.581,166.03,165.98,3.49]
[1752463296863,6.581,166.03,165.96,6.0233]
[1752463296864,0.58,165.99,165.96,3.49]
[1752463297068,5.36983577,165.98,165.96,3.49]
[1752463297274,6.0239,165.95,165.88,6.0261]
[1752463297469,5.36983577,165.94,165.89,3.49]
[1752463297668,5.36983577,165.94,165.84,4.78983577]
[1752463297865,11.39403577,165.94,165.87,6.0264]
[1752463298063,11.39403577,165.94,165.92,3.49]
[1752463299269,0.58,165.97,165.87,4.78983577]
[1752463299473,5.36983577,165.97,165.9,3.49]
[1752463299866,5.36983577,165.97,165.91,3.49]
[1752463299867,6.0235,165.96,165.91,3.49]
[1752463300072,5.36983577,165.97,165.91,3.49]
[1752463300267,4.78983577,165.97,165.91,3.49]
[1752463300565,10.81253577,165.98,165.92,3.49]
[1752463300768,4.78983577,165.96,165.92,3.49]
[1752463300965,4.78983577,165.96,165.94,3.49]
[1752463301167,5.36983577,165.96,165.94,3.49]
[1752463301366,5.36983577,165.96,165.93,3.49]
[1752463301969,6.0238,165.95,165.93,3.49]
[1752463302270,6.6038,165.95,165.93,3.49]
[1752463302665,0.58,165.95,165.88,3.49]
[1752463302869,4.78983577,165.92,165.82,4.78983577]
[1752463303068,4.78983577,165.92,165.83,3.49]
[1752463303265,6.0257,165.9,165.84,3.49]
[1752463303570,4.78983577,165.9,165.84,3.49]
[1752463303770,4.78983577,165.9,165.84,6.0275]
[1752463303971,4.78983577,165.9,165.85,3.49]
[1752463304774,4.78983577,165.9,165.84,3.49]
[1752463304977,5.36983577,165.88,165.85,3.49]
[1752463305280,5.36983577,165.88,165.78,525.22983577]
[1752463305281,5.36983577,165.88,165.86,3.49]
[1752463305477,10.81643577,165.88,165.86,3.49]
[1752463305675,4.78983577,165.88,165.86,3.49]
[1752463306175,10.81623577,165.88,165.86,3.49]
[1752463308175,5.36983577,165.88,165.82,3.49]
[1752463308376,5.36983577,165.86,165.83,3.49]
[1752463308671,4.78983577,165.86,165.83,3.49]
[1752463308878,5.36983577,165.84,165.76,3.49]
[1752463309178,0.58,165.81,165.68,3.49]
[1752463309376,185.42,165.84,165.68,3.49]
[1752463309377,4.78983577,165.77,165.69,3.49]
[1752463309575,4.78983577,165.78,165.73,6.0315]
[1752463309774,0.58,165.8,165.74,3.49]
[1752463309974,4.78983577,165.79,165.74,3.49]
[1752463310168,4.78983577,165.81,165.74,3.49]
[1752463310668,4.78983577,165.77,165.7,3.49]
[1752463311174,4.78983577,165.75,165.69,3.49]
[1752463311372,4.78983577,165.73,165.71,3.49]
[1752463311977,4.78983577,165.73,165.72,3.49]
[1752463312282,4.78983577,165.76,165.71,3.49]
[1752463312685,4.78983577,165.76,165.72,3.49]
[1752463312979,0.58,165.75,165.73,3.49]
[1752463314282,0.58,165.75,165.71,3.49]
[1752463314485,6.6113,165.75,165.72,3.49]
[1752463314776,4.78983577,165.77,165.68,3.49]
[1752463314976,10.82113577,165.75,165.68,9.5235]
[1752463315186,10.82113577,165.75,165.65,4.78983577]
[1752463315187,4.78983577,165.75,165.69,3.49]
[1752463315589,4.78983577,165.75,165.7,6.0326]
[1752463315891,4.78983577,165.75,165.71,3.49]
[1752463316981,4.78983577,165.75,165.69,6.0332]
[1752463317186,4.78983577,165.75,165.73,3.49]
[1752463317885,5.36983577,165.75,165.61,3.49]
[1752463318080,5.36983577,165.75,165.67,3.49]
[1752463318081,11.40093577,165.75,165.67,3.49]
[1752463318289,5.36983577,165.75,165.67,3.49]
[1752463318481,0.58,165.75,165.67,3.49]
[1752463318683,5.36983577,165.75,165.67,3.49]
[1752463318888,4.78983577,165.75,165.69,6.0331]
[1752463319088,5.36983577,165.77,165.7,3.49]
[1752463319288,4.78983577,165.82,165.73,3.49]
[1752463319492,5.36983577,165.82,165.73,3.49]
[1752463320297,5.36983577,165.82,165.76,3.49]
[1752463322493,6.0292,165.81,165.76,3.49]
[1752463322899,6.6092,165.81,165.76,3.49]
[1752463323201,6.0292,165.81,165.76,3.49]
[1752463323794,6.0285,165.83,165.77,3.54]
[1752463323991,4.78983577,165.84,165.77,3.54]
[1752463324198,709.18,165.85,165.77,3.54]
[1752463324397,4.78983577,165.84,165.77,3.54]
[1752463324793,5.36983577,165.84,165.77,3.54]
[1752463324998,4.78983577,165.8,165.71,4.78983577]
[1752463325600,4.78983577,165.8,165.72,3.54]
[1752463326000,4.78983577,165.82,165.75,3.54]
[1752463327194,6.0295,165.8,165.75,3.54]
[1752463327397,0.58,165.83,165.75,3.54]
[1752463327592,526.6877,165.85,165.75,4.78983577]
[1752463327797,520.66,165.85,165.79,3.54]
[1752463328200,192.50983577,165.88,165.8,3.54]
[1752463328702,0.58,165.89,165.81,4.78983577]
[1752463328899,193.12983577,165.92,165.82,3.54]
[1752463329092,193.12983577,165.92,165.82,8.32983577]
[1752463329297,6.0256,165.9,165.84,6.0275]
[1752463329498,188.34,165.92,165.85,3.54]
[1752463329694,6.0252,165.91,165.85,9.5672]
[1752463329905,521.12,165.93,165.86,3.54]
[1752463330405,6.025,165.92,165.86,9.567]
[1752463330605,6.025,165.92,165.87,3.54]
[1752463332104,6.025,165.92,165.84,4.78983577]
[1752463332304,6.025,165.92,165.88,3.54]
[1752463332499,6.0252,165.91,165.88,3.54]
[1752463332700,6.0252,165.91,165.9,3.54]
[1752463333304,521.7,165.93,165.91,3.54]
[1752463333705,527.7246,165.93,165.91,3.54]
[1752463334006,5.36983577,165.96,165.86,3.54]
[1752463334204,187.68,165.95,165.88,3.54]
[1752463334399,5.36983577,165.94,165.84,4.78983577]
[1752463334604,0.58,165.93,165.84,3.54]
[1752463334801,6.0249,165.92,165.87,6.0266]
[1752463335006,0.58,165.93,165.88,3.54]
[1752463335401,6.6046,165.93,165.88,3.54]
[1752463336505,6.0246,165.93,165.89,3.54]
[1752463337102,6.6046,165.93,165.89,3.54]
[1752463337599,6.0251,165.92,165.86,6.0269]
[1752463337806,6.0251,165.92,165.9,3.54]
[1752463338204,6.6051,165.92,165.9,3.54]
[1752463338402,10.81443577,165.93,165.87,6.0266]
[1752463338606,11.39443577,165.93,165.88,3.54]
[1752463338903,6.0244,165.94,165.89,3.54]
[1752463339108,192.46983577,165.95,165.89,3.54]
[1752463339298,0.58,165.93,165.89,3.54]
[1752463339495,0.58,165.93,165.85,4.78983577]
[1752463339697,0.58,165.93,165.91,3.54]
[1752463340096,6.025,165.92,165.91,3.54]
[1752463340300,0.58,165.94,165.92,3.54]
[1752463340498,5.36983577,165.94,165.92,3.54]
[1752463340702,5.36983577,165.94,165.86,3.54]
[1752463341503,5.36983577,165.94,165.87,3.54]
[1752463341906,11.39403577,165.94,165.88,6.0262]
[1752463342106,0.58,165.96,165.89,3.54]
[1752463342305,5.36983577,165.97,165.89,3.54]
[1752463342509,6.0253,165.91,165.86,3.54]
[1752463343613,6.025,165.92,165.86,3.54]
[1752463344213,5.36983577,165.93,165.86,3.54]
[1752463344516,0.58,165.92,165.86,3.54]
[1752463344825,6.6054,165.91,165.86,3.54]
[1752463345116,5.36983577,165.91,165.86,3.54]
[1752463345414,0.58,165.9,165.88,3.54]
[1752463345816,4.78983577,165.91,165.89,3.54]
[1752463346110,5.36983577,165.91,165.89,3.54]
[1752463346315,0.58,165.89,165.81,3.54]
[1752463346509,4.78983577,165.88,165.81,3.54]
[1752463347410,4.78983577,165.88,165.83,6.028]
[1752463347610,4.78983577,165.88,165.84,3.54]
[1752463348310,0.58,165.87,165.83,3.54]
[1752463348616,0.58,165.85,165.82,3.54]
[1752463348815,4.78983577,165.86,165.82,3.54]
[1752463349014,5.36983577,165.86,165.82,3.54]
[1752463349510,4.78983577,165.87,165.82,3.54]
[1752463351109,4.78983577,165.87,165.84,6.0278]
[1752463351315,4.78983577,165.87,165.86,3.43]
[1752463351814,0.58,165.88,165.86,3.43]
[1752463352206,0.58,165.9,165.79,4.78983577]
[1752463352411,5.36983577,165.92,165.84,3.43]
[1752463352812,191.38983577,165.94,165.85,4.78983577]
[1752463353009,186.6,165.94,165.86,3.43]
[1752463353215,186.02,165.94,165.92,6.0246]
[1752463353509,186.02,165.94,165.93,3.43]
[1752463353710,0.58,165.96,165.94,3.43]
[1752463354011,707.04,166.0,165.91,4.78983577]
[1752463354012,0.58,165.99,165.91,4.78983577]
[1752463354218,0.58,165.99,165.92,4.78983577]
[1752463354410,707.04,166.0,165.95,3.43]
[1752463354613,0.58,166.03,165.95,3.43]
[1752463354816,0.58,166.05,166.01,6.0214]
[1752463355013,0.58,166.05,166.03,3.43]
[1752463355520,706.9,166.08,165.97,4.78983577]
[1752463355521,0.58,166.07,166.04,3.43]
[1752463355718,0.58,166.06,166.04,3.43]
[1752463355919,718.28913577,166.08,166.04,3.43]
[1752463356217,5.36983577,166.06,166.04,3.43]
[1752463356423,712.26983577,166.08,165.98,4.78983577]
[1752463356620,706.9,166.08,166.0,4.78983577]
[1752463356826,706.9,166.08,166.01,3.43]
[1752463357125,706.9,166.08,166.03,3.43]
[1752463357619,706.9,166.08,166.04,3.43]
[1752463357620,0.58,166.07,166.04,3.43]
[1752463357820,0.58,166.07,166.02,6.0211]
[1752463358021,0.58,166.06,166.01,6.0215]
[1752463358323,0.58,166.06,166.03,3.43]
[1752463359127,0.58,166.06,165.97,3.43]
[1752463359722,0.58,166.05,166.03,3.43]
[1752463360026,191.22983577,166.07,166.03,3.43]
[1752463360225,0.58,166.06,166.03,3.43]
[1752463362930,190.64983577,166.07,165.98,3.43]
[1752463363130,185.86,166.07,165.99,4.78983577]
[1752463363430,185.86,166.07,166.0,3.43]
[1752463363622,0.57,166.06,166.04,3.43]
[1752463363924,0.57,166.05,166.02,3.43]
[1752463364128,0.57,166.04,166.02,3.43]
[1752463364719,4.78983577,166.06,166.02,3.43]
[1752463364926,5.35983577,166.06,165.98,3.43]
[1752463365221,5.35983577,166.06,166.02,6.0209]
[1752463365427,0.57,166.05,166.03,3.43]
[1752463366131,4.78983577,166.06,166.04,3.43]
[1752463366430,186.43,166.07,166.04,3.43]
[1752463367530,0.57,166.06,166.02,6.0211]
[1752463367724,0.57,166.05,166.03,3.43]
[1752463369122,0.57,166.04,166.02,3.43]
[1752463369331,184.94,166.03,166.02,3.43]
[1752463369625,184.94,166.03,166.02,9.4512]
[1752463370024,526.19983577,166.08,166.03,3.43]
[1752463370229,184.94,166.06,166.03,3.43]
[1752463370426,184.94,166.06,166.05,6.0201]
[1752463370628,184.94,166.06,166.05,9.4501]
[1752463370822,520.84,166.08,166.03,4.78983577]
[1752463371029,705.68,166.08,166.06,3.43]
[1752463371232,184.84,166.08,166.06,3.43]
[1752463371628,184.88,166.09,166.06,3.43]
[1752463371828,184.88,166.09,166.08,3.43]
[1752463373330,184.7,166.11,166.08,3.43]
[1752463373733,190.7181,166.11,165.97,3.43]
[1752463373934,0.57,166.14,166.05,3.43]
[1752463374232,184.6,166.13,166.09,3.43]
[1752463374733,184.6,166.13,166.11,3.43]
[1752463374933,184.6,166.13,166.08,4.78983577]
[1752463375133,184.6,166.13,166.09,3.43]
[1752463375331,184.56,166.13,166.09,3.43]
[1752463376037,184.56,166.13,166.11,3.43]
[1752463377337,184.56,166.13,166.12,9.4476]
[1752463377933,184.56,166.13,166.12,3.43]
[1752463378333,190.2368,166.15,166.12,3.43]
[1752463379235,190.2368,166.15,166.12,6.0175]
[1752463379740,184.22,166.15,166.14,3.43]
[1752463380241,190.2365,166.15,166.14,3.43]
[1752463381036,184.22,166.15,166.14,3.43]
[1752463381531,183.94,166.15,166.14,3.43]
[1752463382037,6.017,166.14,166.09,6.0186]
[1752463382237,0.56,166.13,166.11,3.36]
[1752463382536,185.08,166.12,166.09,6.0184]
[1752463382743,185.08,166.12,166.08,3.36]
[1752463383237,185.08,166.12,166.1,3.36]
[1752463383838,185.08,166.12,166.11,3.36]
[1752463384339,6.0183,166.11,166.07,10.80913577]
[1752463384541,0.56,166.12,166.06,3.36]
[1752463384542,184.88,166.12,166.06,3.36]
[1752463384944,184.88,166.12,166.06,6.23039613]
[1752463385343,190.8979,166.12,166.09,3.36]
[1752463385545,3.43039613,166.14,166.09,3.36]
[1752463385844,185.36,166.13,166.09,3.36]
[1752463386947,184.8,166.13,166.09,3.36]
[1752463387342,6.0164,166.16,166.12,6.0175]
[1752463387540,184.74,166.15,166.14,3.36]
[1752463387950,191.3166,166.15,166.1,2.87039613]
[1752463388449,185.3,166.15,166.11,9.3777]
[1752463388650,0.56,166.14,166.12,3.36]
[1752463389250,0.56,166.14,166.08,2.87039613]
[1752463389443,0.56,166.14,166.09,3.36]
[1752463389842,6.577,166.14,166.09,6.0186]
[1752463390050,6.577,166.14,166.11,3.36]
[1752463390243,184.74,166.15,166.11,3.36]